bitfinex/quotes_SOLUSD_20241021
["timestamp","ask_amount","ask_price","bid_price","bid_amount"]
[1729501398505,5.9927,166.87,166.81,20.9812]
[1729501398703,14.9781,166.91,166.81,14.9868]
[1729501399211,5.9933,166.86,166.81,14.9868]
[1729501401316,5.9939,166.84,166.78,5.9959]
[1729501401530,20.0,166.87,166.77,20.9862]
[1729501401731,20.0,166.87,166.78,1.49980594]
[1729501401935,5.9945,166.82,166.77,14.9901]
[1729501402311,5.9945,166.82,166.77,20.9862]
[1729501402510,5.9945,166.82,166.77,14.9901]
[1729501402918,21.0359,166.93,166.84,5.9934]
[1729501403229,5.9919,166.89,166.83,5.9941]
[1729501405311,21.0359,166.93,166.8,20.0]
[1729501405312,6.0588,166.93,166.8,20.0]
[1729501405526,5.9909,166.92,166.87,5.9926]
[1729501405926,6.4295,166.97,166.86,20.9755]
[1729501406131,5.9912,166.91,166.86,14.9825]
[1729501407943,5.9908,166.93,166.82,44.9586]
[1729501408235,5.9908,166.93,166.8,20.1]
[1729501408236,5.9914,166.91,166.86,5.9928]
[1729501408440,5.9914,166.91,166.85,5.9933]
[1729501409741,5.9914,166.91,166.85,23.776884]
[1729501410033,5.9914,166.91,166.86,5.9929]
[1729501410236,5.9903,166.94,166.88,5.9922]
[1729501410417,5.9905,166.93,166.88,5.9922]
[1729501410817,6.4295,166.97,166.88,14.9807]
[1729501411021,5.9898,166.95,166.89,29.768484]
[1729501411433,5.9894,166.97,166.91,5.9912]
[1729501411630,5.9895,166.96,166.9,5.9916]
[1729501411932,5.9896,166.96,166.91,5.9912]
[1729501413618,16.2291,166.99,166.92,5.9908]
[1729501414148,5.9894,166.97,166.92,5.9908]
[1729501414321,5.9894,166.97,166.91,23.776884]
[1729501414525,16.2291,166.99,166.9,14.979]
[1729501414726,5.9902,166.94,166.9,14.979]
[1729501415865,5.9898,166.95,166.9,14.979]
[1729501416032,5.9898,166.95,166.9,20.9706]
[1729501417334,5.9898,166.95,166.9,14.979]
[1729501418862,5.9902,166.94,166.9,14.979]
[1729501419048,16.2291,166.99,166.85,15.5469]
[1729501419351,14.9725,166.98,166.86,14.9825]
[1729501419557,14.9725,166.98,166.88,5.9922]
[1729501419937,5.9905,166.93,166.88,5.9922]
[1729501422130,14.9725,166.98,166.86,43.776884]
[1729501422333,5.99,166.95,166.89,5.9917]
[1729501422742,5.9902,166.94,166.89,5.9917]
[1729501424265,14.9725,166.98,166.86,43.776884]
[1729501424435,5.9897,166.96,166.91,5.9912]
[1729501424949,5.9899,166.95,166.9,23.776884]
[1729501425259,5.9904,166.94,166.89,20.9717]
[1729501427756,5.9904,166.94,166.9,29.768384]
[1729501428249,5.9898,166.95,166.9,29.768384]
[1729501428448,5.9894,166.97,166.91,5.9909]
[1729501428654,16.2291,166.99,166.92,29.767684]
[1729501429532,5.9893,166.97,166.92,29.767684]
[1729501430148,5.9886,166.99,166.92,23.776884]
[1729501430356,5.9886,166.99,166.94,5.99]
[1729501431967,5.9889,166.98,166.93,14.9762]
[1729501432175,0.25,167.0,166.93,20.9667]
[1729501432348,5.9889,166.98,166.93,20.9667]
[1729501433776,0.25,167.0,166.92,23.776884]
[1729501433954,0.25,167.0,166.9,14.979]
[1729501434280,5.9897,166.96,166.91,23.776884]
[1729501435759,5.9897,166.96,166.91,29.767884]
[1729501436071,5.9897,166.96,166.9,14.979]
[1729501436072,5.9913,166.91,166.87,21.1173]
[1729501436455,5.9913,166.91,166.86,5.9929]
[1729501436456,5.9918,166.9,166.84,25.33033778]
[1729501436650,5.9918,166.9,166.86,1.49909178]
[1729501436962,5.99,166.95,166.86,1.49909178]
[1729501437285,5.99,166.95,166.89,20.9707]
[1729501437453,14.9727,166.97,166.86,14.9826]
[1729501437762,5.991,166.92,166.87,1.49890056]
[1729501437948,5.991,166.92,166.87,5.9925]
[1729501438746,5.991,166.92,166.88,23.776884]
[1729501439770,5.991,166.92,166.88,5.9923]
[1729501440151,5.991,166.92,166.87,29.769484]
[1729501440857,24.126884,167.0,166.88,1.49903414]
[1729501441062,24.126884,167.0,166.84,2.39845038]
[1729501441063,20.963,166.96,166.84,2.39845038]
[1729501441355,36.4608,166.97,166.82,2.39845038]
[1729501441551,36.4608,166.97,166.83,1.49934925]
[1729501441747,15.3764,166.98,166.8,4.4534874]
[1729501441748,5.989,166.98,166.92,5.9907]
[1729501441959,5.989,166.98,166.93,1.49934925]
[1729501442158,5.9891,166.97,166.93,1.49934925]
[1729501442454,15.4112,166.96,166.85,16.3891]
[1729501442656,5.9913,166.91,166.86,3.89749756]
[1729501442869,5.9913,166.91,166.87,1.49903752]
[1729501443152,5.9913,166.91,166.88,1.49903752]
[1729501443355,5.9916,166.9,166.89,1.49903752]
[1729501443566,5.992,166.89,166.86,2.39846004]
[1729501443771,5.992,166.89,166.84,14.9837]
[1729501443772,5.992,166.89,166.87,1.49917506]
[1729501443975,5.992,166.89,166.84,17.38253424]
[1729501444159,5.992,166.89,166.85,1.4993201]
[1729501444357,5.9925,166.88,166.86,1.49932445]
[1729501444558,5.9917,166.9,166.81,22.39891912]
[1729501444757,5.9912,166.92,166.82,23.89813715]
[1729501444972,5.9913,166.91,166.85,5.9931]
[1729501445172,5.9913,166.91,166.86,1.49921803]
[1729501445465,5.9923,166.88,166.85,2.39891912]
[1729501445669,14.9772,166.92,166.86,1.49938578]
[1729501445885,5.9927,166.87,166.82,5.9944]
[1729501446060,5.9922,166.89,166.83,7.49337249]
[1729501446260,5.9922,166.89,166.84,1.49937249]
[1729501446463,5.9922,166.89,166.85,1.49937249]
[1729501446670,5.9922,166.89,166.86,1.49937249]
[1729501446978,5.9923,166.88,166.87,1.49932822]
[1729501447679,5.9923,166.88,166.82,14.9862]
[1729501447680,5.9929,166.87,166.82,14.9862]
[1729501447971,29.9508,166.94,166.81,5.9947]
[1729501447972,5.9931,166.86,166.83,1.499369]
[1729501448169,23.776884,166.92,166.84,1.499369]
[1729501448352,5.9942,166.83,166.8,2.39895675]
[1729501448551,5.9942,166.83,166.81,1.49961281]
[1729501448867,5.9942,166.83,166.76,36.8153]
[1729501448868,5.9937,166.84,166.82,1.49961281]
[1729501449180,5.9937,166.84,166.78,8.39475675]
[1729501449360,5.9937,166.84,166.79,1.49978388]
[1729501449561,5.9937,166.84,166.8,1.49978388]
[1729501449774,16.093,166.88,166.81,1.49978388]
[1729501449966,5.9939,166.84,166.82,1.49978388]
[1729501450270,5.9939,166.84,166.78,5.9958]
[1729501450453,5.9939,166.84,166.79,1.49977093]
[1729501450654,5.9939,166.84,166.8,1.49977093]
[1729501450875,5.9939,166.84,166.81,1.49977093]
[1729501451075,5.9939,166.84,166.82,1.49977093]
[1729501451284,5.9939,166.84,166.78,5.9958]
[1729501451482,5.9939,166.84,166.79,1.49976611]
[1729501451669,5.9939,166.84,166.8,1.49976611]
[1729501451973,5.9944,166.82,166.81,1.49976611]
[1729501452179,16.093,166.88,166.77,2.39895675]
[1729501452180,5.9954,166.8,166.77,2.39895675]
[1729501452365,5.9954,166.8,166.78,1.49987097]
[1729501452555,5.9954,166.8,166.79,1.49987097]
[1729501452756,5.9948,166.81,166.79,1.49987097]
[1729501452979,5.9945,166.82,166.8,1.49987097]
[1729501453277,5.9945,166.82,166.81,1.49987097]
[1729501453478,5.9945,166.82,166.77,2.39895675]
[1729501453479,5.9945,166.82,166.78,1.49987097]
[1729501453666,5.9945,166.82,166.79,1.49987097]
[1729501453865,5.9945,166.82,166.8,1.49987097]
[1729501454051,5.9945,166.82,166.81,1.49987097]
[1729501454256,5.9945,166.82,166.78,1.49987097]
[1729501454453,5.9945,166.82,166.79,1.49987097]
[1729501454681,5.994,166.84,166.8,1.49987097]
[1729501454874,7.20099886,166.91,166.81,1.49987097]
[1729501455083,5.9937,166.85,166.82,1.49977263]
[1729501455269,5.9937,166.85,166.83,1.49977263]
[1729501455470,5.9937,166.85,166.84,1.49977263]
[1729501455665,5.9937,166.85,166.81,1.49977263]
[1729501455867,5.9937,166.85,166.8,5.9951]
[1729501455868,14.9797,166.9,166.82,1.49977263]
[1729501456068,5.9926,166.88,166.83,1.49977263]
[1729501456270,14.9797,166.9,166.84,1.49977263]
[1729501456478,5.9927,166.87,166.85,1.49977263]
[1729501456675,5.9927,166.87,166.86,1.49977263]
[1729501456880,5.9927,166.87,166.82,8.39335675]
[1729501457068,5.9927,166.87,166.83,1.49948097]
[1729501457268,5.9927,166.87,166.84,1.49948097]
[1729501457485,5.9927,166.87,166.85,1.49948097]
[1729501457686,5.993,166.86,166.82,8.39335675]
[1729501457867,5.993,166.86,166.83,1.49949046]
[1729501458069,5.993,166.86,166.84,1.49949046]
[1729501458375,5.993,166.86,166.85,1.49949046]
[1729501458884,5.993,166.86,166.81,5.9947]
[1729501459092,5.993,166.86,166.82,3.89867192]
[1729501459390,5.993,166.86,166.83,1.4994892]
[1729501459596,5.993,166.86,166.84,1.4994892]
[1729501459880,5.993,166.86,166.85,1.4994892]
[1729501461588,5.9961,166.78,166.73,8.39688272]
[1729501461763,5.9948,166.81,166.75,5.9966]
[1729501461968,31.4227,166.86,166.78,5.9958]
[1729501462279,5.9942,166.83,166.79,2.39918272]
[1729501462479,31.4227,166.86,166.79,2.39918272]
[1729501462787,5.9945,166.82,166.78,2.39947531]
[1729501462966,5.9945,166.82,166.79,2.39947531]
[1729501463166,5.9945,166.82,166.78,2.39947531]
[1729501463367,5.9945,166.82,166.79,2.39947531]
[1729501463679,5.9945,166.82,166.77,20.9867]
[1729501463680,5.9945,166.82,166.78,2.39947531]
[1729501464388,5.9948,166.81,166.78,2.39947531]
[1729501464887,5.9955,166.79,166.77,2.39947531]
[1729501465071,5.9955,166.79,166.74,2.39947531]
[1729501466785,5.9955,166.79,166.74,2.40026933]
[1729501467691,5.9961,166.78,166.74,2.40026933]
[1729501470290,14.9844,166.84,166.75,14.9921]
[1729501470469,14.9844,166.84,166.76,29.773184]
[1729501470794,5.9948,166.82,166.76,29.773184]
[1729501471297,5.9952,166.8,166.76,5.9963]
[1729501471502,5.9952,166.8,166.76,2.39994427]
[1729501472011,5.9955,166.79,166.76,2.39994427]
[1729501472290,5.9955,166.79,166.75,17.39204427]
[1729501473495,5.9955,166.79,166.76,1.5000277]
[1729501474983,5.9952,166.8,166.76,1.5000277]
[1729501475498,14.9853,166.83,166.76,1.5000277]
[1729501475674,5.9941,166.83,166.77,1.5000277]
[1729501475873,5.9964,166.77,166.73,2.4000413]
[1729501476075,5.9971,166.75,166.73,3.90015218]
[1729501476383,5.9971,166.75,166.74,1.50011088]
[1729501476579,5.9971,166.75,166.71,1.50011088]
[1729501476780,5.9971,166.75,166.72,1.50011088]
[1729501476979,5.9971,166.75,166.73,1.50011088]
[1729501477298,5.9971,166.75,166.7,5.9985]
[1729501477495,5.9971,166.75,166.71,7.49873888]
[1729501477798,5.9961,166.78,166.72,7.49797761]
[1729501478000,5.9961,166.78,166.73,1.50027761]
[1729501478201,5.9961,166.78,166.74,1.50020942]
[1729501478398,5.9961,166.78,166.75,1.50020942]
[1729501478796,6.4914,166.84,166.73,23.776884]
[1729501479090,6.4914,166.84,166.75,23.776884]
[1729501479293,5.995,166.81,166.76,9.89680305]
[1729501479485,5.995,166.81,166.77,1.50016798]
[1729501479687,5.994,166.84,166.78,5.9958]
[1729501479892,5.994,166.84,166.79,1.49986552]
[1729501480596,5.9933,166.86,166.8,5.9949]
[1729501480793,21.4432,166.88,166.8,5.9949]
[1729501480979,5.9935,166.85,166.8,5.9949]
[1729501481385,5.9935,166.85,166.81,1.499691]
[1729501481881,5.9935,166.85,166.8,5.9949]
[1729501482880,1.03862637,166.92,166.79,43.776884]
[1729501483181,14.9754,166.94,166.83,38.761584]
[1729501483386,5.9923,166.89,166.84,7.49330095]
[1729501483606,5.9923,166.89,166.84,5.9936]
[1729501483980,14.9754,166.94,166.83,38.761584]
[1729501484175,5.9922,166.89,166.84,1.49934802]
[1729501484387,23.776884,166.94,166.84,1.49934802]
[1729501484593,5.9926,166.87,166.84,1.49934802]
[1729501484880,5.9926,166.87,166.83,14.9847]
[1729501485086,5.9926,166.87,166.84,1.49944249]
[1729501485608,5.9926,166.87,166.83,14.9847]
[1729501487029,16.5995,166.95,166.79,20.0]
[1729501487302,5.9905,166.94,166.85,23.776884]
[1729501487489,5.9905,166.94,166.88,5.9922]
[1729501487887,5.9906,166.93,166.88,5.9922]
[1729501488479,5.9906,166.93,166.89,1.49898029]
[1729501488676,15.9273,166.99,166.89,5.9919]
[1729501488917,5.9899,166.95,166.89,29.768484]
[1729501489704,5.9899,166.95,166.9,1.49894247]
[1729501491105,15.9273,166.99,166.9,1.49894247]
[1729501492242,15.9273,166.99,166.91,23.776884]
[1729501492404,5.9894,166.97,166.91,29.767984]
[1729501493232,5.9894,166.97,166.91,23.776884]
[1729501493420,5.9894,166.97,166.92,7.48953662]
[1729501493618,5.9884,166.99,166.93,29.767284]
[1729501494130,0.25,167.0,166.95,23.776884]
[1729501494431,6.2381,167.0,166.95,29.766584]
[1729501494832,0.25,167.0,166.97,23.776884]
[1729501496332,0.25,167.0,166.97,29.765884]
[1729501497030,0.25,167.0,166.97,23.776884]
[1729501497327,0.25,167.0,166.99,29.765184]
[1729501497630,0.25,167.0,166.99,31.26366828]
[1729501498536,5.9848,167.09,167.03,5.9868]
[1729501498717,5.9844,167.1,167.04,5.9864]
[1729501498918,16.4874,167.12,167.05,23.776884]
[1729501499116,5.9848,167.09,167.05,23.776884]
[1729501499416,16.4874,167.12,167.03,14.9671]
[1729501499614,5.9855,167.07,167.03,23.776884]
[1729501499829,5.9855,167.07,167.02,23.776884]
[1729501500420,5.9855,167.07,167.02,5.9873]
[1729501500719,5.9855,167.07,167.03,23.776884]
[1729501500931,5.9852,167.08,167.03,23.776884]
[1729501502209,5.9852,167.08,167.03,29.763684]
[1729501502414,5.9852,167.08,167.04,23.776884]
[1729501502609,5.9846,167.1,167.05,20.9517]
[1729501502916,5.9847,167.09,167.05,14.9655]
[1729501503334,5.9847,167.09,167.04,23.776884]
[1729501505840,5.9847,167.09,167.04,29.763184]
[1729501506420,5.9847,167.09,167.04,29.763384]
[1729501507035,17.262476,167.15,167.01,22.46604638]
[1729501507036,0.604176,167.15,167.07,23.776884]
[1729501507234,5.9841,167.11,167.07,23.776884]
[1729501507921,5.9857,167.07,167.02,5.9869]
[1729501508121,20.9417,167.13,167.01,20.9564]
[1729501508338,5.9857,167.07,167.02,5.9871]
[1729501508746,5.9853,167.08,167.02,20.955]
[1729501509040,5.9853,167.08,167.03,5.9867]
[1729501509240,5.9853,167.08,167.04,23.776884]
[1729501509568,5.9847,167.1,167.05,23.776884]
[1729501511139,5.9838,167.12,167.04,23.776884]
[1729501511342,5.9838,167.12,167.08,23.776884]
[1729501511638,0.604176,167.15,167.09,5.9847]
[1729501511971,5.9833,167.14,167.1,23.776884]
[1729501512238,5.983,167.14,167.09,23.776884]
[1729501512438,0.604176,167.15,167.08,23.776884]
[1729501512643,0.604176,167.15,167.07,5.9854]
[1729501512644,5.9833,167.14,167.07,23.776884]
[1729501512819,5.9835,167.13,167.09,23.776884]
[1729501514349,5.9838,167.12,167.08,14.9628]
[1729501515029,15.2773,167.14,167.04,16.3551]
[1729501515236,15.2773,167.14,167.01,20.956]
[1729501515476,5.9858,167.07,167.02,5.9871]
[1729501515857,15.560776,167.15,167.02,0.1]
[1729501516053,0.604176,167.15,167.02,1.49758764]
[1729501516273,0.604176,167.15,167.06,14.9639]
[1729501516555,0.604176,167.15,167.07,5.9852]
[1729501516556,5.9837,167.12,167.07,5.9852]
[1729501517760,5.9837,167.12,167.07,23.776884]
[1729501518448,0.604176,167.15,167.07,23.776884]
[1729501518644,0.604176,167.15,167.0,22.5696]
[1729501518865,5.9847,167.1,167.04,29.763284]
[1729501519081,5.9842,167.11,167.06,23.776884]
[1729501519578,5.9842,167.11,167.06,29.762584]
[1729501519746,5.9837,167.12,167.06,29.762584]
[1729501520074,5.9834,167.13,167.07,5.9853]
[1729501520246,5.9834,167.13,167.08,23.756884]
[1729501520564,5.9834,167.13,167.03,0.1]
[1729501520791,5.9834,167.13,167.08,5.985]
[1729501522289,5.983,167.14,167.09,5.9845]
[1729501522784,6.586776,167.15,167.1,29.761184]
[1729501522952,6.586776,167.15,167.1,23.776884]
[1729501522953,5.9833,167.14,167.1,23.776884]
[1729501523470,0.604176,167.15,167.1,23.776884]
[1729501523675,0.604176,167.15,167.11,14.9599]
[1729501524456,0.604176,167.15,167.09,7.77580193]
[1729501524656,0.604176,167.15,167.06,5.9855]
[1729501524657,5.9838,167.12,167.06,5.9855]
[1729501525564,0.604176,167.15,167.05,16.2702]
[1729501525756,5.983,167.14,167.1,23.776884]
[1729501526138,0.604176,167.15,167.1,29.761184]
[1729501526139,6.586976,167.15,167.1,29.761184]
[1729501527034,5.983,167.14,167.09,29.761584]
[1729501527238,5.9837,167.13,167.09,23.776884]
[1729501527652,5.983,167.14,167.09,23.776884]
[1729501527857,5.9834,167.13,167.09,23.776884]
[1729501528249,5.9837,167.12,167.09,23.776884]
[1729501529073,0.604176,167.15,167.06,7.77580193]
[1729501529074,5.9841,167.11,167.06,13.76160193]
[1729501529235,5.9841,167.11,167.07,23.776884]
[1729501529778,5.9839,167.12,167.07,29.762384]
[1729501530069,5.983,167.14,167.06,29.762684]
[1729501530252,5.984,167.12,167.06,29.762684]
[1729501530851,5.9841,167.11,167.06,29.762684]
[1729501531352,5.9841,167.11,167.08,23.776884]
[1729501532167,5.983,167.14,167.08,29.761784]
[1729501532461,5.9833,167.14,167.08,29.761784]
[1729501532965,5.9833,167.14,167.09,5.9847]
[1729501533170,5.9833,167.14,167.1,23.776884]
[1729501534367,0.604176,167.15,167.09,23.776884]
[1729501534665,0.604176,167.15,167.13,29.760184]
[1729501536249,0.604176,167.15,167.12,23.776884]
[1729501536458,0.604176,167.15,167.14,23.776884]
[1729501537067,6.224503,167.24,167.23,52.342684]
[1729501537257,31.4462,167.35,167.24,23.776884]
[1729501537258,5.978,167.28,167.24,23.776884]
[1729501537456,6.4196,167.34,167.24,23.776884]
[1729501537677,5.9776,167.29,167.23,23.776884]
[1729501537870,5.9773,167.3,167.23,23.776884]
[1729501538077,6.4196,167.34,167.23,23.776884]
[1729501538955,5.9776,167.29,167.23,23.776884]
[1729501539151,5.9779,167.29,167.22,23.776884]
[1729501539458,5.978,167.28,167.22,23.776884]
[1729501540276,5.9777,167.29,167.22,29.756984]
[1729501540773,6.4196,167.34,167.2,23.776884]
[1729501540774,14.9423,167.31,167.2,23.776884]
[1729501540985,5.9788,167.26,167.2,23.776884]
[1729501541379,5.9788,167.26,167.2,29.757684]
[1729501541954,5.9798,167.23,167.17,14.9541]
[1729501542161,21.6767,167.26,167.13,14.9582]
[1729501542368,5.9814,167.19,167.13,14.9582]
[1729501542554,5.9814,167.19,167.13,20.9414]
[1729501542765,5.9808,167.21,167.14,5.983]
[1729501542960,5.9809,167.2,167.14,5.983]
[1729501543155,5.9809,167.2,167.13,20.9415]
[1729501543356,5.9816,167.18,167.13,14.9582]
[1729501543556,5.9817,167.18,167.11,22.1337]
[1729501544070,5.9819,167.17,167.11,5.9837]
[1729501544264,5.9819,167.17,167.1,5.9842]
[1729501544265,5.982,167.17,167.1,5.9842]
[1729501544557,5.982,167.17,167.11,7.48085554]
[1729501544763,5.982,167.17,167.11,5.984]
[1729501545287,5.9814,167.19,167.12,29.760284]
[1729501545967,21.7767,167.26,167.14,5.9829]
[1729501546182,5.9811,167.2,167.14,5.9829]
[1729501546557,14.9476,167.25,167.14,5.9829]
[1729501546758,5.9812,167.19,167.14,5.9829]
[1729501546969,5.9812,167.19,167.15,23.776884]
[1729501547272,5.9808,167.21,167.15,29.759384]
[1729501547469,21.6767,167.26,167.13,14.9584]
[1729501547470,5.9815,167.19,167.13,20.9416]
[1729501547775,14.9485,167.24,167.14,23.776884]
[1729501549357,5.9812,167.19,167.14,29.759784]
[1729501549767,21.6767,167.26,167.14,23.776884]
[1729501550090,21.6767,167.26,167.16,23.776884]
[1729501550694,5.979,167.25,167.16,29.758984]
[1729501550998,14.9458,167.28,167.18,23.776884]
[1729501551363,5.9797,167.24,167.18,29.758384]
[1729501551572,5.9798,167.23,167.18,29.758384]
[1729501551897,5.9794,167.24,167.19,5.981]
[1729501552200,5.9794,167.24,167.2,23.776884]
[1729501552873,5.9794,167.24,167.19,5.981]
[1729501553879,14.9458,167.28,167.18,14.9537]
[1729501554087,5.98,167.23,167.18,14.9537]
[1729501554473,5.9801,167.23,167.18,14.9537]
[1729501555063,5.9795,167.24,167.18,5.9815]
[1729501555271,5.9798,167.23,167.18,5.9815]
[1729501556272,14.9458,167.27,167.18,5.9815]
[1729501556498,5.9799,167.23,167.18,5.9815]
[1729501558164,14.9458,167.27,167.18,23.776884]
[1729501558795,14.9458,167.27,167.17,14.954]
[1729501558989,5.9804,167.22,167.17,20.9357]
[1729501560106,5.9797,167.24,167.18,29.758384]
[1729501560399,14.9458,167.27,167.18,20.9351]
[1729501560569,5.9801,167.23,167.18,20.9351]
[1729501560776,5.9793,167.25,167.19,29.757784]
[1729501560972,17.16102974,167.3,167.19,29.757784]
[1729501560973,5.9776,167.29,167.19,29.757784]
[1729501561293,5.9793,167.25,167.19,29.757784]
[1729501561494,5.9793,167.25,167.21,5.9805]
[1729501561883,5.9793,167.25,167.2,5.9808]
[1729501562082,31.0688,167.3,167.19,38.729584]
[1729501562083,5.9795,167.24,167.19,38.729584]
[1729501562476,5.9795,167.24,167.19,44.710784]
[1729501562880,5.9803,167.22,167.18,23.776884]
[1729501563202,5.9803,167.22,167.17,5.9816]
[1729501563577,5.9801,167.22,167.17,29.758684]
[1729501563781,5.9796,167.24,167.18,5.9815]
[1729501564310,14.9458,167.27,167.18,5.9815]
[1729501564620,5.9797,167.24,167.18,5.9815]
[1729501566533,14.9458,167.27,167.18,5.9815]
[1729501566823,5.9797,167.23,167.18,5.9815]
[1729501567027,5.9797,167.23,167.19,5.9811]
[1729501567628,5.979,167.26,167.21,5.9804]
[1729501567805,16.1255,167.3,167.17,23.776884]
[1729501567806,16.1255,167.3,167.19,6.91479975]
[1729501568005,5.9784,167.27,167.22,5.9801]
[1729501568404,16.1255,167.3,167.22,23.776884]
[1729501569218,5.9772,167.3,167.24,5.9793]
[1729501569418,0.604176,167.32,167.24,5.9793]
[1729501569708,5.9777,167.29,167.24,5.9793]
[1729501571623,5.9784,167.27,167.23,14.9494]
[1729501571822,0.604176,167.32,167.23,14.9494]
[1729501572023,5.9779,167.29,167.24,5.9793]
[1729501573505,0.604176,167.32,167.25,5.9787]
[1729501573506,5.9772,167.31,167.25,5.9787]
[1729501574122,0.604176,167.32,167.24,14.9479]
[1729501574435,5.9779,167.29,167.24,14.9479]
[1729501574820,5.978,167.28,167.24,14.9479]
[1729501575409,0.604176,167.32,167.24,14.9479]
[1729501575609,5.9776,167.29,167.24,20.9272]
[1729501575922,0.604176,167.32,167.22,23.776884]
[1729501576108,0.604176,167.32,167.28,5.9778]
[1729501576303,0.604176,167.32,167.31,5.9769]
[1729501576535,0.604176,167.32,167.3,14.943]
[1729501577934,0.604176,167.32,167.3,20.9201]
[1729501579330,5.9751,167.37,167.31,5.9769]
[1729501579522,5.9751,167.37,167.32,5.9763]
[1729501579925,5.9753,167.36,167.3,5.9769]
[1729501580931,16.2227,167.39,167.27,23.776884]
[1729501581130,5.9748,167.37,167.32,5.9764]
[1729501581721,21.3201,167.4,167.33,5.9761]
[1729501581722,5.9746,167.38,167.33,5.9761]
[1729501581919,6.3852,167.4,167.28,26.0456]
[1729501582119,16.0839,167.43,167.28,26.0456]
[1729501582120,5.9741,167.39,167.34,5.9756]
[1729501583236,5.9737,167.4,167.34,5.9756]
[1729501583932,16.0839,167.43,167.34,5.9756]
[1729501584113,5.9741,167.39,167.34,5.9756]
[1729501584321,5.9741,167.39,167.32,20.9167]
[1729501584509,5.9753,167.36,167.3,5.9769]
[1729501584717,5.9753,167.36,167.25,7.08269452]
[1729501584718,15.3769,167.35,167.25,7.08269452]
[1729501584916,15.3769,167.35,167.26,1.49551279]
[1729501585115,5.9763,167.33,167.27,5.9782]
[1729501585315,5.9746,167.38,167.31,5.9765]
[1729501585612,5.9746,167.38,167.31,14.942]
[1729501585814,21.9194,167.4,167.28,7.08269452]
[1729501586121,5.9741,167.39,167.33,5.9759]
[1729501589136,7.36107405,167.44,167.34,5.9758]
[1729501589137,5.9726,167.44,167.34,5.9758]
[1729501589336,5.9726,167.44,167.36,5.9748]
[1729501589540,15.4166,167.48,167.35,38.715584]
[1729501589541,5.9735,167.41,167.35,20.9141]
[1729501590327,5.973,167.42,167.35,20.9141]
[1729501590844,14.9289,167.46,167.35,14.9387]
[1729501591034,5.9737,167.4,167.33,29.752984]
[1729501591736,5.9737,167.4,167.34,5.9757]
[1729501591939,20.0,167.45,167.34,5.9757]
[1729501592247,5.9733,167.41,167.34,5.9757]
[1729501594147,5.9726,167.44,167.33,23.776884]
[1729501594349,5.9726,167.44,167.37,5.9747]
[1729501595425,5.9718,167.46,167.39,5.9739]
[1729501595646,15.3166,167.48,167.39,5.9739]
[1729501595853,5.9718,167.46,167.39,5.9739]
[1729501596057,5.9718,167.46,167.39,5.9737]
[1729501596832,15.3166,167.48,167.4,5.9735]
[1729501597057,5.9715,167.46,167.4,5.9735]
[1729501599453,5.9712,167.47,167.4,5.9735]
[1729501599634,5.9716,167.46,167.4,5.9735]
[1729501601057,15.3166,167.48,167.37,23.776884]
[1729501601254,15.3166,167.48,167.36,6.0292]
[1729501601255,6.574676,167.49,167.43,5.9726]
[1729501601554,0.604176,167.49,167.39,23.776884]
[1729501602362,0.604176,167.49,167.44,5.9719]
[1729501602945,0.604176,167.49,167.43,20.9042]
[1729501603154,6.574676,167.49,167.43,20.9042]
[1729501603459,0.604176,167.49,167.44,5.9722]
[1729501604163,6.574676,167.49,167.43,20.9042]
[1729501604459,5.9709,167.48,167.43,14.9316]
[1729501605441,5.9709,167.48,167.42,5.9729]